bitfinex/quotes_ETHUSD_20250314
["timestamp","ask_amount","ask_price","bid_price","bid_amount"]
[1741933146487,2.99419017,1897.3,1897.2,0.63157183]
[1741933150003,8.26483017,1897.3,1897.2,0.63157183]
[1741933150416,8.26483017,1897.3,1897.0,0.55]
[1741933150821,8.26483017,1897.3,1897.1,0.08206002]
[1741933153327,2.99419017,1897.3,1897.1,0.08206002]
[1741933154502,8.26484017,1897.3,1897.1,0.08206002]
[1741933154942,9.61837119,1897.3,1897.1,0.08206002]
[1741933155151,0.7992,1897.2,1897.1,0.63206002]
[1741933155505,6.07012,1897.2,1897.1,0.63206002]
[1741933156353,2.99419017,1897.3,1897.1,0.63206002]
[1741933156949,8.26483017,1897.3,1897.2,0.08203041]
[1741933157110,9.69804219,1897.3,1897.2,0.08203041]
[1741933157306,9.69804219,1897.3,1896.9,0.55]
[1741933157533,5.27096,1897.2,1897.0,0.08208964]
[1741933157853,2.99419017,1897.1,1897.0,0.63208964]
[1741933158255,2.99419017,1897.1,1897.0,0.55]
[1741933158477,9.88360519,1897.1,1897.0,0.55]
[1741933164103,4.61240519,1897.1,1897.0,0.55]
[1741933164565,9.88360519,1897.1,1897.0,0.55]
[1741933164863,10.27062678,1897.1,1897.0,0.55]
[1741933171890,9.47892678,1897.1,1897.0,0.55]
[1741933172065,3.38121176,1897.1,1897.0,0.55]
[1741933175305,8.65241176,1897.1,1897.0,0.55]
[1741933180333,3.38121176,1897.1,1897.0,0.55]
[1741933181787,8.65241176,1897.1,1897.0,0.55]
[1741933182512,8.65241176,1897.1,1896.2,0.8037]
[1741933182513,5.2718,1896.9,1896.2,0.8037]
[1741933182716,2.99419017,1896.6,1896.2,0.8037]
[1741933182886,2.99419017,1896.6,1896.3,0.08002254]
[1741933183089,8.26688017,1896.6,1896.3,0.55]
[1741933183288,8.26688017,1896.6,1896.4,0.07711433]
[1741933183601,8.26688017,1896.6,1896.3,0.55]
[1741933183912,8.26688017,1896.6,1896.5,0.0770847]
[1741933184115,9.62081219,1896.6,1896.4,0.07711433]
[1741933184301,9.62081219,1896.6,1896.5,0.0770847]
[1741933184827,9.62081219,1896.6,1896.5,0.6270847]
[1741933185314,9.62081219,1896.6,1896.5,0.0770847]
[1741933185835,5.27291,1896.5,1896.3,0.55]
[1741933185988,2.99419017,1896.4,1896.3,0.55]
[1741933186190,2.99419017,1896.4,1895.9,0.8055]
[1741933186386,2.99419017,1896.2,1895.9,0.8055]
[1741933187040,2.99419017,1896.2,1896.0,0.55]
[1741933187223,2.99419017,1896.2,1895.9,0.8055]
[1741933187620,2.99419017,1896.2,1896.0,0.55]
[1741933189829,8.26745017,1896.4,1896.0,0.55]
[1741933189997,5.27348,1896.3,1896.0,0.55]
[1741933190394,8.26795017,1896.2,1896.0,0.55]
[1741933190821,2.99419017,1896.2,1896.0,0.55]
[1741933199700,8.26796017,1896.2,1896.0,0.55]
[1741933199927,8.26796017,1896.2,1895.8,1.3262]
[1741933200132,10.30234419,1896.2,1895.8,1.3262]
[1741933200333,2.99419017,1896.0,1895.6,0.7977]
[1741933200632,8.26845017,1896.0,1895.7,0.55]
[1741933201240,2.99419017,1896.0,1895.7,0.55]
[1741933201534,2.99419017,1896.0,1895.8,0.07926755]
[1741933201535,8.26857017,1896.0,1895.8,0.07926755]
[1741933201745,4.42432619,1896.0,1895.8,0.07926755]
[1741933201912,9.69859619,1896.0,1895.7,0.55]
[1741933202110,9.69859619,1896.0,1895.9,0.0792379]
[1741933202305,9.69859619,1896.0,1895.8,0.07926755]
[1741933202306,14.97310619,1896.0,1895.8,0.07926755]
[1741933202509,5.27456,1895.9,1895.7,0.55]
[1741933203040,9.69859619,1896.0,1895.8,0.07926755]
[1741933203236,9.69859619,1896.0,1895.7,0.55]
[1741933203738,9.69859619,1896.0,1895.8,0.07926755]
[1741933204035,6.24438962,1895.9,1895.6,0.55]
[1741933204811,2.99419017,1895.8,1895.6,0.55]
[1741933205342,5.27512,1895.7,1895.5,0.207]
[1741933205639,2.99419017,1895.6,1895.5,0.207]
[1741933205818,2.99419017,1895.6,1895.5,0.757]
[1741933206019,9.01419017,1895.8,1895.6,0.55]
[1741933206441,6.02,1895.8,1895.6,0.55]
[1741933206623,2.99419017,1895.8,1895.5,0.982]
[1741933206811,2.99419017,1895.8,1895.6,0.55]
[1741933207938,2.99419017,1896.0,1895.7,0.55]
[1741933208138,2.99419017,1895.8,1895.7,0.55]
[1741933212148,5.27513,1895.7,1895.6,0.55]
[1741933212308,5.27513,1895.7,1895.5,0.207]
[1741933212513,5.27513,1895.7,1895.6,0.08001489]
[1741933212944,5.27513,1895.7,1895.5,0.207]
[1741933213447,6.46097731,1895.8,1895.6,0.08008043]
[1741933213747,8.26928017,1895.7,1895.5,0.207]
[1741933214552,2.99419017,1895.7,1895.5,0.207]
[1741933216029,2.99419017,1895.7,1895.6,0.55]
[1741933216553,0.38671731,1895.8,1895.6,0.55]
[1741933216748,9.01419017,1895.9,1895.6,0.55]
[1741933216953,9.01419017,1895.9,1895.7,0.08031292]
[1741933217163,0.7592,1895.8,1895.7,0.08031292]
[1741933217329,6.03401,1895.8,1895.5,0.207]
[1741933217528,2.99419017,1895.7,1895.5,0.207]
[1741933217752,8.26933017,1895.7,1895.6,0.08034258]
[1741933222762,8.26933017,1895.7,1895.5,0.207]
[1741933226361,6.02,1895.9,1895.6,1.3299]
[1741933226530,6.02,1896.2,1896.0,0.55]
[1741933227044,7.41351902,1896.2,1896.0,0.55]
[1741933227457,2.99419017,1896.1,1896.0,0.55]
[1741933231068,6.41825676,1896.2,1896.0,0.55]
[1741933231443,11.26828017,1896.1,1895.6,0.7654]
[1741933231643,2.99419017,1895.9,1895.7,0.55]
[1741933234141,2.99419017,1895.9,1895.5,0.207]
[1741933234142,3.78069017,1895.9,1895.5,0.207]
[1741933234345,8.26942017,1895.7,1895.5,0.207]
[1741933234621,8.26940017,1895.7,1895.5,0.207]
[1741933234846,13.54467017,1895.7,1895.5,0.207]
[1741933235141,14.89913719,1895.7,1895.5,0.207]
[1741933235440,9.62386719,1895.7,1895.5,0.207]
[1741933236225,4.34865719,1895.7,1895.5,0.207]
[1741933236399,2.99419017,1895.7,1895.5,0.207]
[1741933236812,5.99419017,1895.7,1895.6,0.55]
[1741933237424,2.99419017,1895.7,1895.6,0.55]
[1741933237629,3.0,1895.8,1895.6,1.3372]
[1741933238894,3.78909017,1895.7,1895.5,0.207]
[1741933239127,9.74319919,1895.7,1895.5,0.207]
[1741933240445,5.27537,1895.6,1895.5,0.207]
[1741933240834,15.76319919,1895.7,1895.3,0.55]
[1741933241145,15.76319919,1895.7,1895.4,0.15177128]
[1741933241503,15.76319919,1895.7,1895.3,0.55]
[1741933241903,15.76319919,1895.7,1895.4,0.15177128]
[1741933242204,6.85179992,1895.6,1895.3,0.55]
[1741933242449,2.99419017,1895.5,1895.4,0.15177128]
[1741933242800,2.99419017,1895.5,1895.3,0.55]
[1741933251442,9.41635482,1895.7,1895.3,0.55]
[1741933252010,14.69156482,1895.7,1895.3,0.55]
[1741933252232,17.0672753,1895.7,1895.3,0.55]
[1741933253211,3.0,1895.5,1895.3,0.55]
[1741933257408,3.0,1895.5,1895.4,1.47931002]
[1741933257613,3.40216465,1895.7,1895.4,1.3272]
[1741933257808,3.40216465,1895.7,1895.5,0.15209847]
[1741933258013,3.40216465,1895.7,1895.6,0.55]
[1741933258723,6.39635482,1895.7,1895.6,0.55]
[1741933258922,8.0554723,1895.7,1895.6,0.55]
[1741933259524,13.3305623,1895.7,1895.6,0.55]
[1741933259815,3.0,1895.5,1895.2,0.55]
[1741933260015,3.0,1895.5,1895.1,1.86653507]
[1741933260318,3.0,1895.5,1895.2,0.15208945]
[1741933260518,3.0,1895.5,1895.1,1.86653507]
[1741933260725,3.0,1895.5,1895.3,0.15205603]
[1741933261042,3.0,1895.5,1895.4,0.70202261]
[1741933261347,3.0,1895.5,1895.2,0.55]
[1741933261650,3.0,1895.5,1895.4,0.55]
[1741933263048,3.0,1895.5,1895.2,0.55]
[1741933263344,3.0,1895.5,1895.4,0.55]
[1741933263752,3.0,1895.5,1895.2,0.55]
[1741933264119,3.0,1895.5,1895.4,0.55]
[1741933264648,3.0,1895.5,1895.2,0.55]
[1741933264847,6.39635482,1895.7,1895.4,0.55]
[1741933265030,3.39635482,1895.7,1895.4,0.55]
[1741933265221,3.0,1895.6,1895.4,0.55]
[1741933266636,4.94734648,1895.6,1895.2,0.55]
[1741933266830,3.7802,1895.6,1895.2,0.55]
[1741933267029,3.7802,1895.6,1895.4,0.55]
[1741933267321,3.0,1895.6,1895.2,0.55]
[1741933267554,3.0,1895.6,1895.5,0.15201105]
[1741933267751,3.0,1895.6,1895.2,0.55]
[1741933268058,3.0,1895.6,1895.4,0.55]
[1741933268253,3.63963548,1895.6,1895.4,0.55]
[1741933268560,3.63963548,1895.6,1895.2,0.55]
[1741933268927,3.78989017,1895.5,1895.3,0.15200138]
[1741933269232,3.78989017,1895.5,1895.4,0.15198982]
[1741933269431,5.58794374,1895.5,1895.2,0.55]
[1741933269631,5.58794374,1895.5,1895.3,0.15202324]
[1741933269936,5.58794374,1895.5,1895.2,0.55]
[1741933270128,5.58794374,1895.5,1895.4,0.15198982]
[1741933270331,5.58794374,1895.5,1895.2,0.55]
[1741933270549,3.78989017,1895.5,1895.4,0.15198982]
[1741933270859,3.78989017,1895.5,1895.2,0.55]
[1741933271057,6.78989017,1895.5,1895.3,0.15202324]
[1741933271254,6.78989017,1895.5,1895.2,0.55]
[1741933271627,6.78989017,1895.5,1895.3,0.15202324]
[1741933271830,6.78989017,1895.5,1895.2,0.55]
[1741933272028,6.78989017,1895.5,1895.3,0.15202324]
[1741933272338,6.78989017,1895.5,1895.2,0.55]
[1741933272552,6.78989017,1895.5,1895.4,0.15198982]
[1741933272750,6.78989017,1895.5,1895.2,0.55]
[1741933272949,6.78989017,1895.5,1895.4,0.15198982]
[1741933273244,6.78989017,1895.5,1895.2,0.55]
[1741933273439,6.78989017,1895.5,1895.3,0.15202324]
[1741933273645,6.78989017,1895.5,1895.2,0.55]
[1741933274031,6.78989017,1895.5,1895.3,0.15202324]
[1741933274343,6.78989017,1895.5,1895.2,0.55]
[1741933274552,6.78989017,1895.5,1895.4,0.15198982]
[1741933274754,6.78989017,1895.5,1895.2,0.55]
[1741933274954,6.78989017,1895.5,1895.4,0.15198982]
[1741933275134,6.78989017,1895.5,1895.2,0.55]
[1741933275331,6.78989017,1895.5,1895.4,0.15198982]
[1741933275526,8.66238174,1895.5,1895.2,0.55]
[1741933275755,6.78989017,1895.5,1895.4,0.15198982]
[1741933275960,6.78989017,1895.5,1895.2,0.55]
[1741933276168,6.78989017,1895.5,1895.4,0.15198982]
[1741933276357,5.59667037,1895.5,1895.2,0.55]
[1741933276561,1.80097037,1895.3,1895.2,0.55]
[1741933278445,1.80097037,1895.4,1895.2,0.55]
[1741933279562,1.80097037,1895.3,1895.2,0.55]
[1741933282871,1.80097037,1895.4,1895.2,0.55]
[1741933283067,3.0,1895.5,1895.2,0.55]
[1741933283273,4.80097037,1895.5,1895.4,0.55]
[1741933283472,6.02,1895.6,1895.4,0.55]
[1741933283675,9.02,1895.6,1895.5,1.52825641]
[1741933283974,4.80097037,1895.6,1895.5,1.3763]
[1741933286277,3.0,1895.6,1895.5,1.3763]
[1741933291883,3.0,1895.6,1895.5,0.55]
[1741933294180,0.40216465,1895.7,1895.6,0.55]
[1741933294478,0.40216465,1895.7,1895.5,0.55]
[1741933294479,3.0,1895.7,1895.5,0.55]
[1741933295981,6.02,1895.9,1895.5,0.55]
[1741933296485,6.02,1895.9,1895.7,0.55]
[1741933296685,7.48928909,1895.9,1895.7,0.55]
[1741933298658,6.02,1895.9,1895.7,0.55]
[1741933298862,3.0,1896.0,1895.7,0.55]
[1741933299068,3.0,1896.0,1895.9,0.55]
[1741933299587,3.0,1896.0,1895.7,0.55]
[1741933299883,3.00079094,1896.1,1895.9,0.55]
[1741933300181,3.00079094,1896.1,1895.7,0.55]
[1741933300182,0.30007909,1896.0,1895.7,0.55]
[1741933300377,3.82439094,1896.1,1895.7,0.55]
[1741933300579,3.00079094,1896.1,1895.9,0.55]
[1741933300982,3.00079094,1896.1,1895.7,0.55]
[1741933301382,3.00079094,1896.1,1895.9,0.55]
[1741933301758,3.00079094,1896.1,1895.7,0.55]
[1741933302270,3.00079094,1896.1,1895.9,0.55]
[1741933302987,3.00079094,1896.1,1895.7,1.3818]
[1741933303456,3.00079094,1896.1,1895.8,0.15120069]
[1741933308376,1.79991724,1895.9,1895.8,0.70120069]
[1741933308768,1.79991724,1895.9,1895.8,0.55]
[1741933311882,1.79991724,1895.9,1895.8,0.70084023]
[1741933315496,2.60351724,1895.9,1895.8,0.70084023]
[1741933315671,8.31839069,1895.9,1895.8,0.70084023]
[1741933315876,8.31839069,1895.9,1895.8,0.55]
[1741933316166,8.31839069,1895.9,1895.8,0.70078562]
[1741933316591,8.31839069,1895.9,1895.8,0.55]
[1741933317470,5.27486,1895.8,1895.6,1.07964067]
[1741933317689,1.79991724,1895.7,1895.6,1.07964067]
[1741933317991,1.79991724,1895.7,1895.6,1.62964067]
[1741933318999,1.79991724,1895.7,1895.6,0.55]
[1741933321362,1.79991724,1895.7,1895.6,0.7010709]
[1741933335145,7.90280724,1895.7,1895.6,0.1510709]
[1741933335303,12.03266685,1895.7,1895.6,0.1510709]
[1741933335503,3.7617,1895.5,1895.0,1.86259944]
[1741933335722,1.79991724,1895.2,1895.1,0.1511506]
[1741933335902,1.79991724,1895.2,1895.1,0.7011506]
[1741933336109,2.56161724,1895.2,1895.1,0.1511506]
[1741933336309,2.56161724,1895.2,1894.6,0.831]
[1741933336633,1.79991724,1895.2,1895.0,0.55]
[1741933337002,1.79991724,1895.2,1895.1,0.15145643]
[1741933338435,4.79991724,1895.3,1895.1,0.15145643]
[1741933338606,1.79991724,1895.2,1895.1,0.15145643]
[1741933343148,7.81991724,1895.4,1895.3,0.55]
[1741933344116,7.81991724,1895.4,1895.0,1.327]
[1741933344414,7.81991724,1895.4,1895.2,1.327]
[1741933344649,1.79991724,1895.7,1895.2,1.327]
[1741933344851,1.79991724,1895.7,1895.3,0.15217623]
[1741933345359,1.79991724,1895.7,1895.2,1.327]
[1741933345552,1.79991724,1895.7,1895.5,0.55]
[1741933345721,1.79991724,1895.7,1895.5,1.3575]
[1741933346047,2.19570606,1895.8,1895.5,1.3575]
[1741933346265,6.8086,1895.9,1895.5,1.3575]
[1741933346960,6.8086,1895.9,1895.7,0.55]
[1741933347868,6.02,1895.9,1895.7,0.55]
[1741933349560,9.02026022,1896.2,1895.8,0.55]
[1741933349759,10.938,1896.2,1895.8,0.55]
[1741933350475,3.0,1896.1,1895.8,0.55]
[1741933351265,10.938,1896.2,1895.8,0.55]
[1741933352545,3.00026022,1896.1,1895.8,0.55]
[1741933355145,6.00026022,1896.1,1895.8,0.55]
[1741933355972,6.00026022,1896.1,1895.9,0.8021]
[1741933356173,6.00026022,1896.1,1896.0,0.55]
[1741933356378,3.0,1896.1,1896.0,0.55]
[1741933358275,3.0,1896.0,1895.6,0.55]
[1741933358474,3.0,1896.0,1895.8,0.55]
[1741933358850,3.0,1896.0,1895.9,0.70125472]
[1741933359577,3.0,1896.0,1895.9,0.55]
[1741933360082,3.7962,1896.0,1895.5,0.797]
[1741933360375,3.00026022,1895.9,1895.6,1.76842906]
[1741933361146,5.27509,1895.7,1895.6,0.03788081]
[1741933361350,5.27509,1895.7,1894.1,2.00510313]
[1741933361351,0.7824,1895.3,1894.1,2.00510313]
[1741933361551,5.31366081,1895.5,1894.1,2.00510313]
[1741933361552,6.00026022,1894.2,1894.1,1.18830313]
[1741933361768,9.79422207,1894.2,1894.1,1.18830313]
[1741933362051,7.50655287,1894.2,1894.1,1.18830313]
[1741933362275,6.06626237,1894.2,1894.1,1.18830313]
[1741933362485,6.8024,1894.7,1893.7,0.8168]
[1741933362711,0.06598608,1894.6,1893.9,0.7764]
[1741933363101,0.06598608,1894.6,1893.9,5.8804]
[1741933363388,3.00026022,1894.5,1894.0,0.58804]
[1741933363555,0.06598877,1894.4,1894.0,0.58804]
[1741933363979,0.06598877,1894.4,1894.1,0.55]
[1741933364882,3.06598877,1894.4,1894.1,0.55]
[1741933365776,3.0,1894.2,1894.0,0.55]
[1741933366355,3.06599267,1894.2,1894.0,0.55]
[1741933366583,3.0,1894.2,1894.0,0.55]
[1741933366887,0.06599276,1894.1,1894.0,0.55]
[1741933367090,3.06599634,1894.2,1894.0,0.55]
[1741933367297,3.06599634,1894.2,1893.9,1.85283628]
[1741933367298,3.06599634,1894.2,1893.9,0.7764]
[1741933367460,3.06599634,1894.2,1894.0,0.55]
[1741933367893,3.06599634,1894.2,1894.1,0.13026498]
[1741933370578,3.0,1894.2,1894.1,0.13026498]
[1741933372000,3.06598977,1894.4,1894.1,0.13026498]
[1741933372168,0.06598977,1894.4,1894.1,0.13026498]
[1741933372373,3.00026022,1894.3,1894.1,0.13026498]
[1741933373979,6.00026022,1894.3,1894.2,0.55]
[1741933374472,6.60688522,1894.3,1894.0,0.55]
[1741933374674,0.06599523,1894.2,1894.0,0.55]
[1741933374875,0.06599523,1894.2,1894.1,0.6829759]
[1741933376109,0.06599509,1894.2,1894.1,0.6829759]
[1741933377214,3.0659951,1894.3,1894.1,0.6829759]
[1741933377876,0.7582,1894.9,1894.2,1.3284]
[1741933378104,5.34367189,1894.8,1894.2,1.3284]
[1741933378310,3.06598189,1894.8,1894.4,0.55]
[1741933378609,3.00026022,1894.7,1894.4,0.55]
[1741933378810,3.00026022,1894.7,1894.2,0.7784]
[1741933378811,0.0659819,1894.6,1894.3,0.55]
[1741933379113,3.06624212,1894.7,1894.3,0.55]
[1741933379705,6.00026022,1894.9,1894.4,0.05278552]
[1741933380005,3.00026022,1894.7,1894.6,0.55]
[1741933380304,3.06623981,1894.7,1894.6,0.55]
[1741933380475,3.06623981,1894.7,1894.3,0.55]
[1741933380677,3.82613981,1894.7,1894.3,0.55]
[1741933382106,3.00026022,1894.5,1894.3,0.55]
[1741933382277,0.06598024,1894.6,1894.0,0.55]
[1741933382478,3.06624046,1894.6,1894.5,0.55]
[1741933382679,3.06624046,1894.6,1894.4,0.55]
[1741933383100,3.06624046,1894.6,1894.5,0.13232804]
[1741933383508,3.06624046,1894.6,1894.4,0.55]
[1741933383880,3.06624046,1894.6,1894.5,0.1323171]
[1741933384281,3.06624046,1894.6,1894.4,0.55]
[1741933384779,0.06598024,1894.6,1894.4,0.55]
[1741933385785,3.44882848,1894.6,1894.2,0.55]
[1741933386107,3.0,1894.5,1894.2,0.55]
[1741933386313,0.06598539,1894.4,1894.3,0.68238401]
[1741933386623,0.06598539,1894.4,1894.1,0.7782]
[1741933386912,6.06624561,1894.4,1894.3,0.13246056]
[1741933387110,3.67287017,1894.4,1894.2,0.13249402]
[1741933387276,3.67287017,1894.4,1894.3,0.13246056]
[1741933387714,3.67287017,1894.4,1894.0,0.55]
[1741933387909,3.06624561,1894.4,1894.3,0.13249337]
[1741933388077,0.06598539,1894.4,1894.0,0.55]
[1741933388282,0.06599211,1894.5,1894.3,0.13249337]
[1741933388507,0.06599211,1894.5,1894.0,0.55]
[1741933388692,0.06599211,1894.5,1894.4,0.68256929]
[1741933388881,0.06599211,1894.5,1894.4,0.55]
[1741933390313,3.06598464,1894.6,1894.4,0.55]
[1741933392482,0.06598464,1894.6,1894.4,0.55]
[1741933392877,0.06598464,1894.6,1894.5,0.13241554]
[1741933393406,0.06598464,1894.6,1894.4,0.55]
[1741933393914,0.06598464,1894.6,1894.5,0.13241554]
[1741933394211,0.06598464,1894.6,1894.4,0.55]
[1741933394715,0.06598464,1894.6,1894.5,0.13241554]
[1741933395078,0.06598464,1894.6,1894.4,0.55]
[1741933395479,0.06598464,1894.6,1894.5,0.13242648]
[1741933395682,3.44883332,1894.6,1894.5,0.13242648]
[1741933395881,3.44883332,1894.6,1894.4,0.55]
[1741933396079,0.4485731,1894.6,1894.4,0.55]
[1741933396294,0.06598464,1894.6,1894.5,0.13242648]
[1741933396695,0.06598464,1894.6,1894.4,0.55]
[1741933397090,0.06598464,1894.6,1894.5,0.13242648]
[1741933397521,0.06598464,1894.6,1894.4,0.55]
[1741933397819,5.0549001,1894.9,1894.6,0.55]
[1741933397820,0.06598344,1894.8,1894.6,0.55]
[1741933397997,0.57807179,1894.8,1894.6,0.55]
[1741933398191,3.57833201,1894.8,1894.3,0.55]
[1741933398581,3.57833201,1894.8,1894.4,0.13249274]
[1741933398785,3.57833201,1894.8,1894.3,0.55]
[1741933398986,3.57833201,1894.8,1894.6,0.55]
[1741933399187,0.3578332,1894.7,1894.6,0.55]
[1741933399413,0.3578332,1894.7,1894.3,0.55]
[1741933399614,0.06598343,1894.6,1894.3,0.55]
[1741933399915,0.06598343,1894.6,1894.4,0.13249274]
[1741933400287,0.06598343,1894.6,1894.3,0.55]
[1741933400486,0.06598343,1894.7,1894.6,0.55]
[1741933401417,0.06598343,1894.7,1894.3,0.55]
[1741933401629,0.42381663,1894.7,1894.6,0.1323821]
[1741933401801,0.42381663,1894.7,1894.3,0.55]
[1741933401994,0.42381663,1894.7,1894.6,0.1323821]
[1741933402400,1.17961663,1894.7,1894.3,0.55]
[1741933402603,1.17961663,1894.7,1894.6,0.1323821]
[1741933402919,4.17961663,1894.7,1894.3,0.55]
[1741933403220,4.17961663,1894.7,1894.4,0.13244899]
[1741933403417,1.17961663,1894.7,1894.3,0.55]
[1741933403618,4.17961663,1894.7,1894.3,0.55]
[1741933403923,4.17961663,1894.7,1894.4,0.13244899]
[1741933404421,4.17961663,1894.7,1894.6,0.55]
[1741933404925,4.17961663,1894.7,1894.3,0.55]
[1741933405326,4.17961663,1894.7,1894.4,0.13244899]
[1741933405704,4.17961663,1894.7,1894.3,0.55]
[1741933405897,4.17961663,1894.7,1894.6,0.55]
[1741933406297,4.17961663,1894.7,1894.3,0.55]
[1741933406527,3.82178343,1894.7,1894.3,0.55]
[1741933406698,0.82178343,1894.7,1894.4,0.13244899]
[1741933407231,3.82178343,1894.7,1894.6,0.55]
[1741933407743,3.82178343,1894.7,1894.3,0.55]
[1741933408098,3.82178343,1894.7,1894.4,0.13251461]
[1741933408527,3.82178343,1894.7,1894.3,0.55]
[1741933408733,3.82178343,1894.7,1894.6,0.55]
[1741933408899,4.76317061,1894.7,1894.6,0.55]
[1741933409104,4.76317061,1894.7,1894.3,0.55]
[1741933409305,3.82178343,1894.7,1894.3,0.55]
[1741933409510,0.06598343,1894.7,1894.5,0.55]
[1741933409729,0.51208835,1894.8,1894.5,1.357]
[1741933409730,0.06598154,1894.8,1894.5,1.357]
[1741933410145,0.5027097,1894.8,1894.6,0.1324149]
[1741933410443,0.5027097,1894.8,1894.5,1.357]
[1741933411907,5.2765,1895.2,1894.2,1.07861552]
[1741933411908,0.7692,1895.5,1894.9,0.55]
[1741933412113,0.06595962,1895.4,1894.9,0.55]
[1741933412325,0.06595962,1895.4,1895.1,0.55]
[1741933412765,0.06595962,1895.4,1895.3,0.55]
[1741933412941,0.48908077,1895.4,1895.3,0.55]
[1741933413235,3.48908077,1895.4,1894.9,0.55]
[1741933413436,3.48908077,1895.4,1895.3,0.13186378]
[1741933413638,3.48908077,1895.4,1894.9,0.55]
[1741933413808,3.48908077,1895.4,1895.3,0.13186378]
[1741933414137,3.48908077,1895.4,1894.9,0.55]
[1741933414337,3.06595962,1895.4,1894.9,0.55]
[1741933414539,3.06595962,1895.4,1895.1,0.55]
[1741933414840,3.06595962,1895.4,1895.3,0.55]
[1741933416007,3.06595962,1895.4,1894.9,0.55]
[1741933416208,3.06595962,1895.4,1895.3,0.13186378]
[1741933416409,3.78908077,1895.4,1894.9,0.55]
[1741933416608,3.78908077,1895.4,1895.3,0.13186378]
[1741933416836,3.78908077,1895.4,1894.9,0.55]
[1741933417038,3.78908077,1895.4,1895.3,0.13117499]
[1741933417340,3.78908077,1895.4,1894.9,0.55]
[1741933417743,3.78908077,1895.4,1895.1,0.55]
[1741933418128,3.78908077,1895.4,1895.3,0.55]
[1741933418512,3.78908077,1895.4,1894.9,0.55]
[1741933418914,3.78908077,1895.4,1895.1,0.55]
[1741933419355,3.78908077,1895.4,1895.3,0.55]
[1741933419737,3.78908077,1895.4,1894.9,0.55]
[1741933420117,3.78908077,1895.4,1895.1,0.55]
[1741933420542,3.78908077,1895.4,1895.3,0.55]
[1741933420913,3.78908077,1895.4,1894.9,0.55]
[1741933421327,3.78908077,1895.4,1895.1,0.55]
[1741933421328,0.06595962,1895.4,1895.1,0.55]
[1741933421727,0.06595962,1895.4,1895.3,0.55]
[1741933422144,0.06595962,1895.4,1894.9,0.55]
[1741933422518,0.06595962,1895.4,1895.1,0.55]
[1741933423019,0.06595962,1895.4,1894.8,0.8094]
[1741933423020,0.06595962,1895.4,1895.3,0.55]
[1741933423219,0.06595962,1895.4,1894.9,0.55]
[1741933423420,0.06595962,1895.4,1895.3,0.13117499]
[1741933423749,0.06595962,1895.4,1894.9,0.55]
[1741933423750,0.48905475,1895.4,1894.9,0.55]
[1741933423930,0.06595962,1895.4,1894.9,0.55]
[1741933424126,0.06595962,1895.4,1895.1,0.55]
[1741933424521,0.06595962,1895.4,1895.3,0.55]
[1741933425039,0.06595962,1895.4,1894.9,0.55]
[1741933425255,0.06595962,1895.4,1895.3,0.13117499]
[1741933425551,0.78908077,1895.4,1894.9,0.55]
[1741933425953,0.78908077,1895.4,1895.1,0.55]
[1741933426352,0.78908077,1895.4,1895.3,0.55]
[1741933426726,0.78908077,1895.4,1894.9,0.55]
[1741933427254,0.78908077,1895.4,1895.1,0.55]
[1741933427653,0.78908077,1895.4,1895.3,0.55]
[1741933428448,0.78908077,1895.4,1894.9,0.55]
[1741933428655,0.78908077,1895.4,1895.3,0.13117499]
[1741933428958,0.78908077,1895.4,1894.9,0.55]
[1741933429142,3.78908077,1895.4,1894.9,0.55]
[1741933429350,3.78908077,1895.4,1895.1,0.55]
[1741933429721,0.78908077,1895.4,1895.3,0.55]
[1741933430154,0.78908077,1895.4,1894.9,0.55]
[1741933430657,3.78908077,1895.4,1895.1,0.55]
[1741933431052,0.78908077,1895.4,1895.3,0.55]
[1741933431225,3.78908077,1895.4,1895.3,0.55]
[1741933431422,0.78908077,1895.4,1894.9,0.55]
[1741933431651,3.78908077,1895.4,1895.3,0.13119685]
[1741933431953,3.78908077,1895.4,1894.9,0.55]
[1741933432332,3.78908077,1895.4,1895.1,0.55]
[1741933432732,3.78908077,1895.4,1895.3,0.55]
[1741933433250,3.0,1895.3,1894.9,0.55]
[1741933433430,3.06595962,1895.4,1895.3,0.13119685]
[1741933433631,4.08908077,1895.4,1894.9,0.55]
[1741933433959,3.06595962,1895.4,1895.3,0.13119685]
[1741933434158,3.06595962,1895.4,1894.9,0.55]
[1741933434365,3.7788,1895.2,1894.4,6.09]
[1741933434567,0.0659676,1895.1,1895.0,0.12628758]
[1741933434777,0.45044436,1895.1,1894.5,0.831]
[1741933434979,0.0659676,1895.1,1894.6,0.55]
[1741933435125,0.0659676,1895.1,1894.6,0.67638251]
[1741933440365,0.7788,1895.2,1894.8,0.55]
[1741933440593,0.0659675,1895.2,1894.8,0.55]
[1741933440990,0.0659675,1895.2,1895.0,0.55]
[1741933441394,0.0659675,1895.2,1895.1,0.12634619]
[1741933441591,0.06596154,1895.3,1895.2,0.55]
[1741933442289,0.06596154,1895.3,1894.8,0.55]
[1741933442486,0.06596149,1895.4,1895.0,0.55]
[1741933442689,0.06596149,1895.4,1895.1,0.12628076]
[1741933442869,0.06596149,1895.4,1895.2,0.55]
[1741933443071,0.06596149,1895.4,1895.0,0.55]
[1741933443270,0.06596149,1895.4,1895.3,0.67621391]
[1741933443473,0.06596149,1895.4,1895.3,0.55]
[1741933445504,0.06596149,1895.4,1895.3,0.67621391]
[1741933446177,0.06595481,1895.4,1895.3,0.67621391]
[1741933447468,0.06595481,1895.4,1895.3,0.55]
[1741933448005,0.8016,1895.3,1894.8,0.761]
[1741933448198,0.06596329,1895.2,1894.8,0.761]
[1741933448506,0.06596329,1895.2,1894.9,0.12615134]
[1741933448810,0.06596329,1895.2,1894.8,0.55]
[1741933449005,0.06596329,1895.2,1894.7,6.09]